bitfinex/quotes_BTCUSD_20250422
["timestamp","ask_amount","ask_price","bid_price","bid_amount"]
[1745338138211,0.073,90830.0,90829.0,0.00687375]
[1745338139145,0.07,90830.0,90829.0,0.00687383]
[1745338139348,0.071,90830.0,90829.0,0.00687383]
[1745338139555,0.073,90830.0,90829.0,0.00687383]
[1745338141162,0.30494169,90830.0,90829.0,0.00687383]
[1745338141409,0.29319156,90830.0,90829.0,0.00687383]
[1745338141617,0.46878835,90830.0,90829.0,0.00397004]
[1745338141818,0.56878835,90830.0,90829.0,0.00397004]
[1745338142046,0.1,90812.0,90811.0,0.0008468]
[1745338142248,0.48129115,90812.0,90811.0,0.0008468]
[1745338142438,0.543832,90812.0,90811.0,0.0008468]
[1745338142658,0.443832,90812.0,90811.0,0.0008468]
[1745338143201,0.452832,90812.0,90811.0,0.0008468]
[1745338143394,0.452832,90812.0,90811.0,0.00098471]
[1745338143604,0.22275594,90812.0,90811.0,0.00098471]
[1745338144590,0.30692236,90812.0,90811.0,0.00098471]
[1745338144784,0.31392236,90812.0,90811.0,0.00198471]
[1745338145248,0.24429679,90812.0,90811.0,0.00198471]
[1745338146238,0.23729679,90812.0,90811.0,0.00098471]
[1745338146506,0.24429679,90812.0,90811.0,0.00198471]
[1745338146708,0.23529679,90812.0,90811.0,0.00198471]
[1745338146906,0.24529679,90812.0,90811.0,0.00198471]
[1745338147247,0.23075594,90812.0,90811.0,0.00198471]
[1745338147872,0.22375594,90812.0,90811.0,0.00098471]
[1745338148087,0.22975594,90812.0,90811.0,0.00198471]
[1745338150523,0.37443594,90812.0,90811.0,0.00198471]
[1745338151848,0.27443594,90812.0,90811.0,0.00198471]
[1745338152049,0.12975594,90812.0,90811.0,0.00198471]
[1745338152233,0.16068,90812.0,90811.0,0.00198471]
[1745338152677,0.15068,90812.0,90811.0,0.00198471]
[1745338152877,0.14468,90812.0,90811.0,0.00098471]
[1745338153086,0.15368,90812.0,90811.0,0.00098471]
[1745338153296,0.14468,90812.0,90811.0,0.00098471]
[1745338153497,0.15068,90812.0,90811.0,0.00098471]
[1745338154109,0.56057125,90812.0,90811.0,0.00198471]
[1745338154449,0.504212,90812.0,90811.0,0.00198471]
[1745338154579,0.499212,90812.0,90811.0,0.00098471]
[1745338154782,0.501212,90812.0,90811.0,0.00098471]
[1745338155487,0.493212,90812.0,90811.0,0.00098471]
[1745338155689,0.501212,90812.0,90811.0,0.00098471]
[1745338156086,0.506212,90812.0,90811.0,0.00198471]
[1745338161046,1.05116405,90812.0,90811.0,0.00198471]
[1745338161467,1.07581177,90812.0,90811.0,0.00198471]
[1745338161720,0.96205972,90812.0,90811.0,0.00198471]
[1745338161921,0.95705972,90812.0,90811.0,0.00098471]
[1745338162142,0.94905972,90812.0,90811.0,0.00198471]
[1745338162371,0.99850811,90812.0,90811.0,0.00198471]
[1745338162625,0.57478333,90809.0,90800.0,0.0118474]
[1745338162859,0.68853927,90809.0,90808.0,0.00098421]
[1745338163074,0.67479788,90803.0,90800.0,0.0118474]
[1745338163320,0.45454085,90793.0,90792.0,0.0008478]
[1745338163545,0.45454085,90793.0,90774.0,0.0004241]
[1745338163546,0.57483185,90789.0,90774.0,0.0004241]
[1745338163757,0.78858779,90789.0,90774.0,0.0004241]
[1745338164229,0.81903961,90789.0,90774.0,0.0004241]
[1745338164445,0.011016,90777.0,90774.0,0.0004241]
[1745338164656,0.011016,90777.0,90745.0,0.0008478]
[1745338164657,0.61987796,90770.0,90745.0,0.0008478]
[1745338164859,0.7336339,90770.0,90745.0,0.0008478]
[1745338165964,0.75725742,90770.0,90769.0,0.10978601]
[1745338166166,0.78879174,90770.0,90769.0,0.10978601]
[1745338166873,0.79579174,90770.0,90769.0,0.11078601]
[1745338167077,0.80592526,90770.0,90769.0,0.11078601]
[1745338167301,0.80592526,90770.0,90745.0,0.0008478]
[1745338167302,0.67492895,90749.0,90745.0,0.0008478]
[1745338167522,0.98150489,90749.0,90745.0,0.0008478]
[1745338168393,0.93340489,90749.0,90748.0,0.19676446]
[1745338168537,0.93840489,90749.0,90748.0,0.19676446]
[1745338168746,0.94940489,90749.0,90748.0,0.19676446]
[1745338169127,0.37447594,90749.0,90748.0,0.19676446]
[1745338169334,0.25270565,90749.0,90748.0,0.19676446]
[1745338169545,0.39246565,90749.0,90748.0,0.19576446]
[1745338169753,0.3779248,90749.0,90748.0,0.19576446]
[1745338169958,0.3849248,90749.0,90748.0,0.19576446]
[1745338171342,0.1,90737.0,90728.0,0.19969909]
[1745338171676,0.12775594,90749.0,90729.0,0.39662183]
[1745338171879,0.014,90749.0,90739.0,0.5901058]
[1745338172115,0.014,90749.0,90746.0,0.22039281]
[1745338172318,0.014,90749.0,90747.0,0.56259625]
[1745338172319,0.003,90749.0,90747.0,0.56259625]
[1745338172520,0.003,90749.0,90748.0,0.45595945]
[1745338172725,0.0101294,90773.0,90762.0,0.22035581]
[1745338172925,0.0101294,90773.0,90764.0,0.22035168]
[1745338173130,0.1,90775.0,90761.0,0.34]
[1745338173343,0.11375594,90774.0,90761.0,0.34]
[1745338173772,0.10045921,90775.0,90761.0,0.34]
[1745338174094,0.001,90773.0,90762.0,0.004]
[1745338174493,0.10045921,90775.0,90763.0,0.00220331]
[1745338174696,0.10045921,90775.0,90761.0,0.34]
[1745338174901,0.001,90774.0,90765.0,0.5901058]
[1745338175327,0.002,90773.0,90765.0,0.5901058]
[1745338175694,0.002,90773.0,90765.0,0.61480776]
[1745338176014,0.10045921,90775.0,90765.0,0.61480776]
[1745338176179,0.00245921,90775.0,90766.0,0.01101734]
[1745338176384,0.001,90773.0,90766.0,0.00220324]
[1745338176753,0.00045921,90775.0,90766.0,0.01322058]
[1745338176963,0.00045921,90775.0,90774.0,0.34]
[1745338177426,0.00045921,90775.0,90774.0,0.3856]
[1745338177984,0.00045921,90775.0,90774.0,0.0456]
[1745338178389,0.00545921,90775.0,90774.0,0.0466]
[1745338178563,0.00545921,90775.0,90772.0,0.34]
[1745338178991,0.00645921,90775.0,90774.0,0.002]
[1745338179193,0.00045921,90775.0,90770.0,0.34]
[1745338179618,0.00145921,90775.0,90774.0,0.002]
[1745338179816,0.00245921,90775.0,90774.0,0.01020285]
[1745338180018,0.00245921,90775.0,90774.0,0.46395879]
[1745338180277,0.00245921,90775.0,90774.0,0.46175594]
[1745338180409,0.00145921,90775.0,90774.0,0.45575594]
[1745338180613,0.00145921,90775.0,90774.0,0.86925594]
[1745338180829,0.00045921,90775.0,90774.0,0.86725594]
[1745338181241,0.00245921,90775.0,90774.0,0.86825594]
[1745338182150,0.08895659,90810.0,90774.0,0.86825594]
[1745338182151,0.08895659,90810.0,90798.0,0.01101345]
[1745338182372,0.0890943,90810.0,90800.0,0.60111901]
[1745338182585,0.00013771,90810.0,90808.0,0.2202436]
[1745338182800,0.00013771,90810.0,90806.0,0.34]
[1745338183380,0.00013771,90810.0,90807.0,0.22024733]
[1745338183778,0.00013771,90810.0,90808.0,0.2242434]
[1745338183984,0.00013771,90810.0,90808.0,0.344]
[1745338184574,0.00513771,90810.0,90808.0,0.344]
[1745338184747,0.00013771,90810.0,90808.0,0.344]
[1745338184886,0.00313771,90810.0,90808.0,0.345]
[1745338185087,0.00313771,90810.0,90809.0,0.22024248]
[1745338185282,0.00313771,90810.0,90808.0,0.02487567]
[1745338185581,0.00313771,90810.0,90808.0,0.36487567]
[1745338185827,0.00013771,90810.0,90808.0,0.36387567]
[1745338186031,0.00013771,90810.0,90809.0,0.22024248]
[1745338186218,0.00413771,90810.0,90809.0,0.22024248]
[1745338186421,0.00413771,90810.0,90808.0,0.36487567]
[1745338186631,0.00413771,90810.0,90808.0,0.02487567]
[1745338187692,0.00413771,90810.0,90809.0,0.00220216]
[1745338187890,0.00013771,90810.0,90808.0,0.24411995]
[1745338188111,0.00013771,90810.0,90808.0,0.02387567]
[1745338188334,0.00313771,90810.0,90808.0,0.001]
[1745338188779,0.00313771,90810.0,90808.0,0.02241409]
[1745338188959,0.00313771,90810.0,90805.0,0.0110126]
[1745338188960,0.00013771,90810.0,90805.0,0.0110126]
[1745338189198,0.00013771,90810.0,90807.0,0.01101236]
[1745338189431,0.00313771,90810.0,90808.0,0.341]
[1745338189642,0.00013771,90810.0,90808.0,0.34]
[1745338189857,0.00413771,90810.0,90809.0,0.22024248]
[1745338190811,0.00413771,90810.0,90808.0,0.001]
[1745338191060,0.00413771,90810.0,90807.0,0.34]
[1745338191061,0.00013771,90810.0,90807.0,0.34]
[1745338191265,0.00013771,90810.0,90807.0,0.341]
[1745338191470,0.00313771,90810.0,90807.0,0.341]
[1745338191680,0.00413771,90810.0,90807.0,0.34]
[1745338191883,0.00813771,90810.0,90808.0,0.001]
[1745338192088,0.00813771,90810.0,90808.0,0.22124422]
[1745338192314,0.00513771,90810.0,90809.0,0.11595809]
[1745338192516,0.1,90838.0,90827.0,0.22019883]
[1745338192722,0.10012653,90838.0,90829.0,0.01100969]
[1745338192944,0.10012653,90838.0,90828.0,0.5901058]
[1745338194269,0.10012653,90838.0,90821.0,0.34]
[1745338194693,0.10112653,90838.0,90827.0,0.001]
[1745338194897,0.21988247,90838.0,90827.0,0.001]
[1745338195097,0.21888247,90838.0,90821.0,0.34]
[1745338195331,0.22488247,90838.0,90828.0,0.001]
[1745338195542,0.21488247,90838.0,90822.0,0.01101054]
[1745338195741,0.21488247,90838.0,90820.0,0.9301058]
[1745338195915,0.21988247,90838.0,90827.0,0.001]
[1745338196217,0.21888247,90838.0,90820.0,0.9301058]
[1745338196415,0.21888247,90838.0,90821.0,0.01101066]
[1745338196836,0.21888247,90838.0,90820.0,0.94111659]
[1745338197044,0.21888247,90838.0,90820.0,1.16133188]
[1745338197281,0.21888247,90838.0,90828.0,0.5901058]
[1745338197501,0.22788247,90838.0,90828.0,0.5911058]
[1745338197928,0.21388247,90838.0,90828.0,0.5901058]
[1745338198138,0.21788247,90838.0,90828.0,0.5901058]
[1745338198342,0.21988247,90838.0,90828.0,0.5901058]
[1745338198788,0.22388247,90838.0,90828.0,0.5911058]
[1745338199008,0.22388247,90838.0,90837.0,0.22017459]
[1745338199009,0.01012653,90838.0,90837.0,0.22017459]
[1745338199221,0.01012653,90838.0,90836.0,0.2201766]
[1745338199222,0.01312653,90838.0,90836.0,0.2201766]
[1745338199882,0.01312653,90838.0,90837.0,0.34]
[1745338200334,0.01312653,90838.0,90837.0,0.34687181]
[1745338200578,0.00612653,90838.0,90837.0,0.34687181]
[1745338200749,0.00012653,90838.0,90837.0,0.34687181]
[1745338200881,0.00212653,90838.0,90837.0,0.00687181]
[1745338201126,0.00012653,90838.0,90837.0,0.00687181]
[1745338201556,0.00412653,90838.0,90837.0,0.34687181]
[1745338202046,0.00412653,90838.0,90837.0,0.46062775]
[1745338203556,0.00012653,90838.0,90837.0,0.46062775]
[1745338203768,0.0008482,90849.0,90848.0,0.56014793]
[1745338203978,0.0008486,90866.0,90848.0,0.56014793]
[1745338203979,0.0008486,90866.0,90864.0,0.22010917]
[1745338204188,0.00130821,90866.0,90865.0,0.34]
[1745338204661,0.00130821,90866.0,90865.0,0.34687181]
[1745338204893,0.00130821,90866.0,90865.0,0.3687494]
[1745338205120,0.00130821,90866.0,90865.0,0.0287494]
[1745338205333,0.00830821,90866.0,90865.0,0.0287494]
[1745338205553,0.00330821,90866.0,90865.0,0.0287494]
[1745338206012,0.181805,90866.0,90865.0,0.00687181]
[1745338206494,0.179805,90866.0,90865.0,0.00687181]
[1745338206711,0.1,90851.0,90840.0,0.5901058]
[1745338206924,0.01100557,90863.0,90841.0,0.34]
[1745338207140,0.01100606,90859.0,90840.0,0.02196129]
[1745338207351,0.33386995,90862.0,90841.0,0.00687195]
[1745338207565,0.11275594,90858.0,90841.0,0.00687195]
[1745338207791,0.11275594,90858.0,90842.0,0.00687195]
[1745338208224,0.1,90855.0,90848.0,0.5901058]
[1745338208639,0.003,90862.0,90853.0,0.34]
[1745338208842,0.003,90862.0,90854.0,0.00687195]
[1745338209456,0.003,90862.0,90855.0,0.00687195]
[1745338210070,0.00230821,90866.0,90853.0,0.34]
[1745338210363,0.001,90858.0,90853.0,0.34]
[1745338210561,0.001,90858.0,90853.0,0.57114169]
[1745338210763,0.00230821,90866.0,90855.0,0.22012996]
[1745338211071,0.00230821,90866.0,90861.0,0.22011588]
[1745338211072,0.001,90862.0,90861.0,0.22011588]
[1745338211244,0.00230821,90866.0,90861.0,0.01100582]
[1745338211466,0.00230821,90866.0,90859.0,0.01100606]
[1745338211467,0.00230821,90866.0,90864.0,0.2201086]
[1745338211686,0.00230821,90866.0,90862.0,0.22698391]
[1745338211879,0.00230821,90866.0,90862.0,0.0068704]
[1745338212249,0.00230821,90866.0,90863.0,0.0068704]
[1745338212862,0.00230821,90866.0,90852.0,0.34]
[1745338213058,0.00330821,90866.0,90852.0,0.56013731]
[1745338213341,0.00330821,90866.0,90852.0,0.34]
[1745338213753,0.003,90862.0,90852.0,0.3238]
[1745338214580,0.00430821,90866.0,90852.0,0.3238]
[1745338214782,0.00430821,90866.0,90855.0,0.23113716]
[1745338214989,0.00230821,90866.0,90854.0,0.23113864]
[1745338215191,0.00230821,90866.0,90856.0,0.23113399]
[1745338215556,0.002,90862.0,90848.0,0.01100739]
[1745338215785,0.002,90862.0,90824.0,0.33030692]
[1745338215786,0.002,90862.0,90851.0,0.34]
[1745338216649,0.00330821,90866.0,90840.0,0.61146188]
[1745338216862,0.1,90861.0,90840.0,0.61146188]
[1745338217082,0.01100618,90858.0,90855.0,0.001]
[1745338217291,0.11375594,90860.0,90841.0,0.34]
[1745338217800,0.11375594,90860.0,90851.0,0.001]
[1745338218024,0.11375594,90860.0,90841.0,0.34]
[1745338218238,0.069,90849.0,90841.0,0.34]
[1745338218673,0.069,90849.0,90840.0,0.61146188]
[1745338219106,0.069,90849.0,90841.0,0.00687182]
[1745338219322,0.069,90849.0,90847.0,0.22015009]
[1745338219533,0.069,90849.0,90848.0,0.56014793]
[1745338219744,0.005,90858.0,90857.0,0.22012613]
[1745338219958,0.00230821,90866.0,90859.0,0.01100606]
[1745338220180,0.00230821,90866.0,90865.0,0.22010675]
[1745338220605,0.00230821,90866.0,90864.0,0.22010917]
[1745338220839,0.00230821,90866.0,90865.0,0.56010675]
[1745338221059,0.00230821,90866.0,90865.0,0.56697857]
[1745338221265,0.000424,90874.0,90873.0,0.56008737]
[1745338221476,0.00056183,90874.0,90873.0,0.72194331]
[1745338221926,0.00056183,90874.0,90873.0,0.72881513]
[1745338222150,0.00015976,90893.0,90892.0,0.34]
[1745338222596,0.12204384,90893.0,90873.0,0.00687182]
[1745338222862,0.1,90875.0,90866.0,0.01100521]
[1745338223084,0.1,90875.0,90873.0,0.006]
[1745338223503,0.1,90875.0,90874.0,0.00686902]
[1745338225009,0.103,90875.0,90874.0,0.00786902]
[1745338225639,0.104,90875.0,90874.0,0.00786902]
[1745338226324,0.49907932,90875.0,90874.0,0.00786902]
[1745338226539,0.54527932,90875.0,90874.0,0.00786902]
[1745338226765,0.56764644,90875.0,90874.0,0.001]
[1745338227215,0.54527932,90875.0,90874.0,0.001]
[1745338227423,0.23464517,90866.0,90865.0,0.001]
[1745338227637,0.49096111,90866.0,90865.0,0.001]
[1745338227876,0.27185679,90866.0,90865.0,0.001]
[1745338228114,0.27185679,90866.0,90865.0,0.00787149]
[1745338228336,0.37085679,90866.0,90865.0,0.00787149]
[1745338230482,0.37985679,90866.0,90865.0,0.00787149]
[1745338230902,0.37985679,90866.0,90865.0,0.00687149]
[1745338231400,0.3745293,90866.0,90865.0,0.00687149]
[1745338231622,0.109,90866.0,90865.0,0.00687149]
[1745338232047,0.009,90866.0,90865.0,0.03628769]
[1745338232264,0.009,90866.0,90865.0,0.01459987]
[1745338232674,0.009,90866.0,90865.0,0.23470662]
[1745338233354,0.009,90866.0,90865.0,0.036013]
[1745338235548,0.22275594,90866.0,90865.0,0.036013]
[1745338235963,0.22275594,90866.0,90850.0,0.5901058]
[1745338236181,0.11375594,90865.0,90850.0,0.61189449]
[1745338236393,0.11375594,90865.0,90851.0,0.00637174]
[1745338236983,0.11375594,90865.0,90856.0,0.01100642]
[1745338237237,0.009,90866.0,90863.0,0.01100557]
[1745338237453,0.009,90866.0,90865.0,0.22010675]
[1745338237597,0.009,90866.0,90861.0,0.23112181]
[1745338237808,0.1,90867.0,90861.0,0.23112181]
[1745338238026,0.003,90865.0,90862.0,0.00686971]
[1745338238428,0.1,90867.0,90864.0,0.22010917]
[1745338238621,0.007,90866.0,90863.0,0.00913953]
[1745338238828,0.007,90866.0,90865.0,0.00227374]
[1745338238986,0.007,90866.0,90863.0,0.00686971]
[1745338239191,0.007,90866.0,90864.0,0.00227178]
[1745338239413,0.007,90866.0,90865.0,0.01099826]
[1745338239919,0.1,90867.0,90865.0,0.01099826]
[1745338240592,0.003,90866.0,90865.0,0.00412855]
[1745338240805,0.011,90866.0,90856.0,0.22012789]
[1745338241012,0.008,90866.0,90855.0,0.01100654]
[1745338241230,0.008,90866.0,90854.0,0.34]
[1745338241231,0.008,90866.0,90857.0,0.00687059]
[1745338241635,0.104,90867.0,90858.0,0.00687059]
[1745338241758,0.1,90867.0,90859.0,0.00687059]
[1745338241984,0.006,90866.0,90859.0,0.00687059]
[1745338242179,0.006,90866.0,90860.0,0.00687059]
[1745338242825,0.006,90866.0,90861.0,0.00687059]
[1745338243020,0.006,90866.0,90862.0,0.00412855]
[1745338243225,0.1,90867.0,90862.0,0.00412855]
[1745338243226,0.11375594,90865.0,90862.0,0.00412855]
[1745338243380,0.11375594,90865.0,90863.0,0.00687059]
[1745338243801,0.11375594,90865.0,90862.0,0.00412855]
[1745338244000,0.11375594,90865.0,90861.0,0.001]
[1745338244510,0.11475594,90865.0,90862.0,0.00687109]
[1745338244722,0.12075594,90865.0,90863.0,0.001]
[1745338244931,0.11975594,90865.0,90862.0,0.00687109]
[1745338245312,0.12075594,90865.0,90846.0,0.22015047]
[1745338245528,0.12075594,90865.0,90845.0,0.22015356]
[1745338245736,0.12075594,90865.0,90851.0,0.0091342]
[1745338246114,0.12075594,90865.0,90852.0,0.00687146]
[1745338246316,0.12575594,90865.0,90852.0,0.00687146]
[1745338246523,0.11375594,90865.0,90853.0,0.0022586]
[1745338246725,0.11375594,90865.0,90853.0,0.00913006]
[1745338246726,0.3201334,90854.0,90853.0,0.00913006]
[1745338246924,0.44843019,90854.0,90853.0,0.00810639]
[1745338247138,0.44943019,90854.0,90853.0,0.00687146]
[1745338247332,0.44943019,90854.0,90850.0,0.00045961]
[1745338247333,0.23368151,90851.0,90850.0,0.00045961]
[1745338247538,0.34643745,90851.0,90850.0,0.00045961]
[1745338247940,0.34543745,90851.0,90850.0,0.00045961]
[1745338249559,0.35643745,90851.0,90850.0,0.00045961]
[1745338249789,0.36243745,90851.0,90850.0,0.00045961]
[1745338250010,0.23075594,90851.0,90850.0,0.00045961]
[1745338250619,0.4508966,90851.0,90850.0,0.00045961]
[1745338250834,0.46543745,90851.0,90850.0,0.00045961]
[1745338256435,0.4650683,90851.0,90850.0,0.00045961]
[1745338258314,0.56092896,90851.0,90850.0,0.00045961]
[1745338258480,0.4650683,90851.0,90850.0,0.00045961]
[1745338258861,0.4540683,90851.0,90850.0,0.00045961]
[1745338259276,0.4590683,90851.0,90850.0,0.00045961]
[1745338259656,0.4640683,90851.0,90850.0,0.00045961]
[1745338259873,0.1,90834.0,90821.0,0.17898914]
[1745338260080,0.1,90834.0,90821.0,0.0196418]
[1745338260298,0.1,90834.0,90822.0,0.00687371]
[1745338260823,0.1,90834.0,90823.0,0.00687371]
[1745338261467,0.1,90834.0,90824.0,0.00687371]
[1745338261692,0.1,90834.0,90825.0,0.00687371]
[1745338261890,0.02554836,90847.0,90825.0,0.00687371]
[1745338262113,0.02554836,90847.0,90826.0,0.00687371]
[1745338262114,0.003,90834.0,90826.0,0.00687371]
[1745338262326,0.003,90834.0,90830.0,0.5901058]
[1745338262536,0.1,90849.0,90831.0,0.26968868]
[1745338262745,0.0110057,90862.0,90831.0,0.26968868]
[1745338262746,0.1,90861.0,90839.0,0.60111428]
[1745338262961,0.1,90861.0,90841.0,0.2201649]
[1745338263199,0.1,90861.0,90842.0,0.00687371]
[1745338263200,0.32011858,90861.0,90842.0,0.00687371]
[1745338263429,0.11100582,90861.0,90842.0,0.00687371]
[1745338263635,0.23112541,90860.0,90843.0,0.00687371]
[1745338263840,0.11100582,90861.0,90843.0,0.00687371]
[1745338264044,0.11100582,90861.0,90844.0,0.00687371]
[1745338264251,0.33112352,90861.0,90844.0,0.00687371]
[1745338264432,0.01024482,90854.0,90844.0,0.00687371]
[1745338264624,0.01024482,90854.0,90845.0,0.00687371]
[1745338264881,0.01824482,90854.0,90845.0,0.00687371]
[1745338265290,0.01824482,90854.0,90846.0,0.00687371]
[1745338265700,0.01024482,90854.0,90846.0,0.00687371]
[1745338265909,0.01024482,90854.0,90840.0,0.0489]
[1745338265910,0.01024482,90854.0,90847.0,0.00687371]
[1745338266117,0.01924482,90854.0,90847.0,0.00687371]
[1745338266542,0.11375594,90853.0,90831.0,0.0495]
[1745338266750,0.01100788,90844.0,90821.0,0.0196418]
[1745338266994,0.01100751,90847.0,90821.0,0.0196418]
[1745338266995,0.11375594,90843.0,90830.0,0.5901058]
[1745338268410,0.11375594,90843.0,90821.0,0.0196418]
[1745338268411,0.01100836,90840.0,90821.0,0.0196418]
[1745338268611,0.11375594,90839.0,90821.0,0.3596418]
[1745338269014,0.11375594,90839.0,90821.0,0.3636418]
[1745338269263,0.11375594,90839.0,90822.0,0.00448666]
[1745338269889,0.11775594,90839.0,90822.0,0.00448666]
[1745338270098,0.11775594,90839.0,90829.0,0.5901058]
[1745338270304,0.11375594,90839.0,90830.0,0.0044845]
[1745338270515,0.004,90839.0,90830.0,0.3444845]
[1745338270727,0.004,90839.0,90835.0,0.22017438]
[1745338270971,0.004,90839.0,90833.0,0.34]
[1745338271159,0.004,90839.0,90836.0,0.00446298]
[1745338271362,0.004,90839.0,90833.0,0.56018351]
[1745338271585,0.004,90839.0,90837.0,0.00450234]
[1745338271787,0.004,90839.0,90836.0,0.22017558]
[1745338272023,0.004,90839.0,90838.0,0.00451109]
[1745338272247,0.001,90854.0,90837.0,0.22468952]
[1745338272460,0.006,90839.0,90838.0,0.22017112]
[1745338272662,0.006,90839.0,90838.0,0.00455485]
[1745338273014,0.014,90839.0,90838.0,0.00455485]
[1745338273225,0.11475594,90854.0,90838.0,0.00455485]
[1745338273431,0.001,90839.0,90838.0,0.00455485]
[1745338273625,0.01,90839.0,90838.0,0.00455485]
[1745338273857,0.11475594,90854.0,90839.0,0.22016975]
[1745338274057,0.11475594,90854.0,90838.0,0.00455485]
[1745338274234,0.006,90839.0,90837.0,0.22017439]
[1745338274506,0.006,90839.0,90836.0,0.22017663]
[1745338274632,0.005218,90839.0,90837.0,0.22017387]
[1745338275070,0.005218,90839.0,90838.0,0.001]
[1745338275283,0.11475594,90854.0,90838.0,0.001]
[1745338275481,0.11475594,90854.0,90835.0,0.22017824]
[1745338275690,0.12175594,90854.0,90838.0,0.001]
[1745338275939,0.12175594,90854.0,90837.0,0.001]
[1745338275940,0.01100739,90848.0,90837.0,0.001]
[1745338276153,0.2201626,90842.0,90837.0,0.001]
[1745338276364,0.2201626,90842.0,90815.0,0.22022767]
[1745338276365,0.007,90839.0,90838.0,0.001]
[1745338276585,0.11375594,90839.0,90830.0,0.5901058]
[1745338276795,0.11275594,90838.0,90835.0,0.001]
[1745338277200,0.11275594,90838.0,90836.0,0.01164559]
[1745338277418,0.1,90851.0,90835.0,0.001]
[1745338277619,0.1,90851.0,90841.0,0.5901058]
[1745338277829,0.1,90851.0,90842.0,0.00452996]
[1745338278040,0.22015766,90844.0,90842.0,0.00452996]
[1745338278288,0.11375594,90843.0,90842.0,0.00452996]
[1745338278903,0.11375594,90843.0,90830.0,0.5901058]
[1745338279110,0.11375594,90843.0,90842.0,0.00456493]
[1745338279319,0.11375594,90843.0,90831.0,0.00687344]
[1745338279562,0.12375594,90843.0,90842.0,0.00456493]
[1745338279784,0.12375594,90843.0,90830.0,0.5901058]
[1745338279996,0.01100812,90842.0,90830.0,0.5901058]
[1745338280203,0.34791697,90843.0,90831.0,0.00456055]
[1745338280204,0.11375594,90841.0,90831.0,0.00456055]
[1745338281064,0.11375594,90841.0,90830.0,0.5901058]
[1745338281287,0.11375594,90841.0,90830.0,0.39238375]
[1745338281288,0.01100836,90840.0,90830.0,0.39238375]
[1745338281508,0.11375594,90839.0,90831.0,0.00455179]
[1745338282613,0.11375594,90839.0,90830.0,0.39238375]
[1745338282850,0.12175594,90839.0,90830.0,0.39238375]
[1745338283478,0.12075594,90839.0,90830.0,0.39238375]
[1745338284315,0.12075594,90839.0,90831.0,0.00687357]
[1745338284937,0.12075594,90839.0,90832.0,0.00687357]
[1745338285146,0.11375594,90839.0,90832.0,0.00687357]
[1745338285367,0.11975594,90839.0,90833.0,0.00687357]
[1745338285772,0.11375594,90839.0,90834.0,0.00455242]
[1745338286006,0.12075594,90839.0,90834.0,0.00455242]
[1745338286240,0.11375594,90839.0,90834.0,0.00455242]
[1745338286648,0.12075594,90839.0,90834.0,0.00455242]
[1745338286849,0.11375594,90839.0,90829.0,0.1481531]
[1745338287148,0.12175594,90839.0,90829.0,0.1481531]
[1745338287331,0.12175594,90839.0,90830.0,0.00687373]
[1745338287991,0.12175594,90839.0,90831.0,0.00687373]
[1745338288200,0.12175594,90839.0,90829.0,0.1481531]
[1745338288407,0.11375594,90839.0,90829.0,0.1481531]
[1745338288761,0.11975594,90839.0,90821.0,0.0196418]
[1745338288970,0.11975594,90839.0,90829.0,0.39238375]
[1745338289181,0.11975594,90839.0,90831.0,0.001]
[1745338289658,0.11375594,90839.0,90829.0,0.39238375]
[1745338289891,0.11775594,90839.0,90829.0,0.39238375]
[1745338290111,0.11375594,90839.0,90829.0,0.39238375]
[1745338290552,0.11375594,90839.0,90830.0,0.00687363]
[1745338290976,0.12075594,90839.0,90830.0,0.00687363]
[1745338291187,0.12075594,90839.0,90831.0,0.00687363]
[1745338291805,0.12075594,90839.0,90829.0,0.39338375]
[1745338292015,0.12075594,90839.0,90829.0,0.39238375]
[1745338292240,0.11375594,90839.0,90829.0,0.39238375]
[1745338292454,0.11975594,90839.0,90829.0,0.39238375]
[1745338292662,0.11975594,90839.0,90830.0,0.00687363]
[1745338293263,0.11975594,90839.0,90831.0,0.00687363]
[1745338293689,0.11375594,90839.0,90829.0,0.39238375]
[1745338294153,0.12075594,90839.0,90829.0,0.39238375]
[1745338294557,0.007,90839.0,90829.0,0.39338375]
[1745338294773,0.007,90839.0,90829.0,0.44208375]
[1745338295327,0.007,90839.0,90838.0,0.22017217]
[1745338295547,0.1,90873.0,90840.0,0.01100836]
[1745338295769,0.11375594,90869.0,90860.0,0.39238375]
[1745338296173,0.11375594,90869.0,90850.0,0.39238375]
[1745338296174,0.01100594,90860.0,90850.0,0.39238375]
[1745338296390,0.01100642,90856.0,90850.0,0.39238375]
[1745338296608,0.11375594,90855.0,90844.0,0.4135]
[1745338296821,0.11375594,90855.0,90844.0,0.43282018]
[1745338297231,0.11380649,90855.0,90844.0,0.43282018]
[1745338298738,0.11380649,90855.0,90845.0,0.00687218]
[1745338299065,0.11380649,90855.0,90846.0,0.00687218]
[1745338299688,0.11380649,90855.0,90847.0,0.00687218]
[1745338299917,0.11980649,90855.0,90848.0,0.00687218]
[1745338300126,0.02198065,90854.0,90848.0,0.00687218]
[1745338300337,0.11375594,90853.0,90848.0,0.00687218]
[1745338300537,0.11375594,90853.0,90844.0,0.43282018]
[1745338300538,0.11375594,90853.0,90849.0,0.00687218]
[1745338301047,0.11375594,90853.0,90850.0,0.00687218]
[1745338301459,0.11375594,90853.0,90851.0,0.00687218]
[1745338301642,0.11575594,90853.0,90851.0,0.00687218]
[1745338301846,0.11575594,90853.0,90852.0,0.00687218]
[1745338302387,0.11375594,90853.0,90852.0,0.00687218]
[1745338302601,0.11675594,90853.0,90852.0,0.00687218]
[1745338302821,0.12675594,90853.0,90852.0,0.00687218]
[1745338303248,0.13675594,90853.0,90852.0,0.00687218]
[1745338303721,0.13375594,90853.0,90852.0,0.00687218]
[1745338303923,0.35389176,90853.0,90852.0,0.00687218]
[1745338304138,0.46833261,90853.0,90852.0,0.00687218]
[1745338304339,0.1,90840.0,90832.0,0.01965548]
[1745338304553,0.01100872,90837.0,90832.0,0.01965548]
[1745338304760,0.11375594,90836.0,90830.0,0.39238375]
[1745338305407,0.11375594,90836.0,90820.0,0.39238375]
[1745338305607,0.12179989,90836.0,90820.0,0.39238375]
[1745338305819,0.01100969,90829.0,90813.0,0.0004238]
[1745338306060,0.01101006,90826.0,90820.0,0.01931642]
[1745338306239,0.11375594,90828.0,90813.0,0.0004238]
[1745338306694,0.11375594,90828.0,90818.0,0.39238375]
[1745338307121,0.11375594,90828.0,90819.0,0.01983128]
[1745338307342,0.11375594,90828.0,90819.0,0.0004238]
[1745338307343,0.11380646,90828.0,90819.0,0.0004238]
[1745338307903,5.052e-05,90828.0,90819.0,0.0004238]